Workbook

Sheet MCU
A1: www.xue51.com
C46: us | D46: ms
B47: 1 | C47: =1000000/32000*16*(1+B47) -> 1000 | D47: =C47/1000 -> 1
B48: 9 | C48: 5000 | D48: 5
B49: 99 | C49: 50000 | D49: 50
B50: 19999 | C50: 10000000 | D50: 10000
B51: 9999 | C51: 5000000 | D51: 5000
B52: 32767 | C52: 16384000 | D52: 16384
B53: 1999 | C53: 1000000 | D53: 1000
B54: 2999 | C54: 1500000 | D54: 1500
B55: 4000 | C55: 2000500 | D55: 2000.5
B56: 999 | C56: 500000 | D56: 500
B57: 5999 | C57: 3000000 | D57: 3000

Sheet 购买
B14: m8
A16: 304不锈钢防爆头电线防水接头连接器螺丝固定头
A68: 1 | B68: M10防水接头 金属
A69: 2 | B69: 灌封硅胶 双组分 防水
A70: 3 | B70: 铸铝壳体
A99: https://order.1688.com/order/smart_make_order.htm?p=detail
A101: ：AE10A.120*80*56四个螺丝

Sheet 盒体和接头
K410: AE27.135*85*56
N411: E27.135*85*56 | O411: 28.00元
K415: AE10A.120*80*56四个螺丝
G417: 规格
G418: AE2.64*58*38 | H418: 11.00元 | I418: 100000个可售 | J418: -
J419: +
G420: AE3.80*75*60 | H420: 19.00元 | I420: 100000个可售 | J420: -
J421: +
G422: AE4.120*120*82 | H422: 43.00元 | I422: 100000个可售 | J422: -
J423: +
G424: AE5.160*160*75 | H424: 65.00元 | I424: 100000个可售 | J424: -
J425: +
G426: AE6.160*160*90 | H426: 72.00元 | I426: 100000个可售 | J426: -
J427: +
G428: AE8.111*64*37 | H428: 18.00元 | I428: 100000个可售 | J428: -
J429: +
G430: AE9.115*90*58翻盖 | H430: 34.00元 | I430: 100000个可售 | J430: -
J431: +
G432: AE9A.115*90*58 | H432: 28.00元 | I432: 100000个可售 | J432: -
J433: +
G434: AE10A.120*80*56四个螺丝 | H434: 24.00元 | I434: 100000个可售 | J434: -
J435: +
G436: AE10B.120*80*56六个螺丝 | H436: 24.00元 | I436: 100000个可售 | J436: -
J437: +
G438: AE11.160*100*65 | H438: 41.00元 | I438: 100000个可售 | J438: -
J439: +
G440: AE12.175*80*58 | H440: 37.00元 | I440: 100000个可售 | J440: -
J441: +
G442: AE13.115*65*55 | H442: 25.00元 | I442: 100000个可售 | J442: -
J443: +
G444: AE14A.188*120*80四个螺丝 | H444: 45.00元 | I444: 100000个可售 | J444: -
J445: +
G446: AE14B.188*120*80六个螺丝 | H446: 45.00元 | I446: 100000个可售 | J446: -
J447: +
G448: AE15A.222*145*55四个螺丝 | H448: 50.00元 | I448: 100000个可售 | J448: -
J449: +
G450: AE15B.222*145*55六个螺丝 | H450: 50.00元 | I450: 100000个可售 | J450: -
J451: +
G452: AE16A.222*145*75六个螺丝 | H452: 58.00元 | I452: 100000个可售 | J452: -
J453: +
G454: AE16B.222*145*80 | H454: 58.00元 | I454: 100000个可售 | J454: -
J455: +
G456: AE17.230*150*75 | H456: 69.00元 | I456: 100000个可售 | J456: -
J457: +
G458: AE17A.230*150*75有窗口 | H458: 69.00元 | I458: 100000个可售 | J458: -
J459: +
G460: AE18.240*160*75 | H460: 81.00元 | I460: 100000个可售 | J460: -
J461: +
G462: AE19.240*160*100 | H462: 89.00元 | I462: 100000个可售 | J462: -
J463: +
G464: AE20.260*185*78 | H464: 102.00元 | I464: 100000个可售 | J464: -
J465: +
G466: AE21.260*185*95 | H466: 111.00元 | I466: 100000个可售 | J466: -
J467: +
G468: AE22.260*185*128 | H468: 130.00元 | I468: 100000个可售 | J468: -
J469: +
G470: AE23.340*235*95 | H470: 208.00元 | I470: 100000个可售 | J470: -
J471: +
G472: AE24.340*235*120 | H472: 234.00元 | I472: 100000个可售 | J472: -
J473: +
G474: AE25.340*235*135 | H474: 275.00元 | I474: 100000个可售 | J474: -
J475: +
G476: AE26.340*235*160 | H476: 300.00元 | I476: 100000个可售 | J476: -
J477: +
G478: AE27.135*85*56 | H478: 28.00元 | I478: 100000个可售 | J478: -
J479: +
G480: AE28.180*140*60翻盖带耳 | H480: 72.00元 | I480: 100000个可售 | J480: -
J481: +
G482: AE29.200*130*78 | H482: 50.00元 | I482: 100000个可售 | J482: -
J483: +
G484: AE30.220*155*95翻盖四螺 | H484: 110.00元 | I484: 100000个可售 | J484: -
J485: +
G486: AE31.250*190*90翻盖四螺 | H486: 143.00元 | I486: 100000个可售 | J486: -
J487: +
G488: AE32.250*190*90翻盖窗口 | H488: 130.00元 | I488: 100000个可售 | J488: -
J489: +
G490: AE33.250*80*65 | H490: 48.00元 | I490: 100000个可售 | J490: -
J491: +
G492: AE34.250*80*80 | H492: 55.00元 | I492: 100000个可售 | J492: -
J493: +
G494: AE35.140*140*75 | H494: 54.00元 | I494: 100000个可售 | J494: -
J495: +
G496: AE36.148*98*42 | H496: 54.00元 | I496: 99995个可售 | J496: -
J497: +
G498: AE37.300*210*130 | H498: 208.00元 | I498: 100000个可售 | J498: -
J499: +
G500: AE38.90*36*31 | H500: 12.00元 | I500: 100000个可售 | J500: -
J501: +
G502: AE39.185*135*85翻盖四螺 | H502: 98.00元 | I502: 100000个可售 | J502: -
J503: +
G504: AE40.150*100*80 | H504: 98.00元 | I504: 100000个可售 | J504: -
J505: +
G506: AE41.300*210*100 | H506: 182.00元 | I506: 100000个可售 | J506: -
J507: +
G508: AE42.100*100*82 | H508: 45.00元 | I508: 100000个可售 | J508: -
J509: +
G510: AE43.105*55*55 | H510: 35.00元 | I510: 100000个可售 | J510: -
J511: +
G512: AE44.200*130*85 | H512: 59.00元 | I512: 100000个可售 | J512: -
J513: +
G514: AE45.230*150*85 | H514: 76.00元 | I514: 100000个可售 | J514: -
J515: +
G516: AE46.165*95*39 | H516: 34.00元 | I516: 100000个可售 | J516: -
J517: +
G518: AE47.340*235*95翻盖 | H518: 228.00元 | I518: 100000个可售 | J518: -
J519: +
G520: AE48.340*235*155翻盖安装 | H520: 365.00元 | I520: 100000个可售 | J520: -
J521: +
G522: AE49.340*235*135翻盖 | H522: 300.00元 | I522: 100000个可售 | J522: -
J523: +
G524: AE50.340*235*115翻盖安装 | H524: 300.00元 | I524: 100000个可售 | J524: -
J525: +
G526: AE51.340*235*120翻盖 | H526: 260.00元 | I526: 100000个可售 | J526: -
J527: +
G528: AE52.160*100*60 | H528: 37.00元 | I528: 100000个可售 | J528: -
J529: +
G530: AE53.160*160*85翻盖 | H530: 78.00元 | I530: 100000个可售 | J530: -
J531: +
G532: AE54.175*80*80 | H532: 46.00元 | I532: 100000个可售 | J532: -
J533: +
G534: AE55.250*120*82 | H534: 78.00元 | I534: 100000个可售 | J534: -
J535: +
G536: AE56.320*120*90 | H536: 104.00元 | I536: 100000个可售 | J536: -
J537: +
G538: AE57.360*160*95 | H538: 156.00元 | I538: 100000个可售 | J538: -
J539: +
G540: AE58.360*160*135 | H540: 195.00元 | I540: 100000个可售 | J540: -
J541: +
G542: AE59.280*185*80 | H542: 104.00元 | I542: 100000个可售 | J542: -
J543: +
G544: AE60.100*68*50翻盖 | H544: 29.00元 | I544: 100000个可售 | J544: -
J545: +

Sheet 灌封工艺等

Sheet acc
V31: speed = 1
A141: 800000 | C141: =HEX2DEC(A141) -> 8388608
A142: ffffff | C142: =HEX2DEC(A142) -> 16777215
A143: 00824A40 | C143: =HEX2DEC(A143) -> 8538688 | D143: =C143-$C$142 -> -8238527
A144: 00824A4A | C144: =HEX2DEC(A144) -> 8538698 | D144: =C144-$C$142 -> -8238517
A145: 00824A4E | C145: 8538702 | D145: -8238513
A146: 00824A43 | C146: 8538691 | D146: -8238524
A147: 00824A46 | C147: 8538694 | D147: -8238521
A148: 00824A42 | C148: 8538690 | D148: -8238525
A149: 00824A49 | C149: 8538697 | D149: -8238518
A150: fffffe | C150: 16777214 | D150: -1
C151: 0 | D151: -16777215
A152: 00824CD6 | C152: 8539350 | D152: -8237865 | F152: =C152-$C$141 -> 150742
A153: 00824CD6 | C153: 8539350 | D153: -8237865 | F153: =C153-$C$141 -> 150742
A154: 00824CCE | C154: 8539342 | D154: -8237873 | F154: 150734
A155: 00824CCE | C155: 8539342 | D155: -8237873 | F155: 150734
A156: 00824CC9 | C156: 8539337 | D156: -8237878 | F156: 150729
A157: 00824CC3 | C157: 8539331 | D157: -8237884 | F157: 150723
A158: 00824CBD | C158: 8539325 | D158: -8237890 | F158: 150717
A159: 00824CBA | C159: 8539322 | D159: -8237893 | F159: 150714
A160: 00824CB2 | C160: 8539314 | D160: -8237901 | F160: 150706
A161: 00824CAD | C161: 8539309 | D161: -8237906 | F161: 150701
A162: 00824CA0 | C162: 8539296 | D162: -8237919 | F162: 150688
A163: 00824CA5 | C163: 8539301 | D163: -8237914 | F163: 150693
A164: 00824CA2 | C164: 8539298 | D164: -8237917 | F164: 150690
A165: 00824C9A | C165: 8539290 | D165: -8237925 | F165: 150682
A166: 00824C9F | C166: 8539295 | D166: -8237920 | F166: 150687
A167: 00824C8F | C167: 8539279 | D167: -8237936 | F167: 150671
A168: 00824C8C | C168: 8539276 | D168: -8237939 | F168: 150668
A169: 00824C8D | C169: 8539277 | D169: -8237938 | F169: 150669
A170: 00824C8C | C170: 8539276 | D170: -8237939 | F170: 150668
A171: 00824C7D | C171: 8539261 | D171: -8237954 | F171: 150653
A172: 00824C7E | C172: 8539262 | D172: -8237953 | F172: 150654
A173: 00824C7A | C173: 8539258 | D173: -8237957 | F173: 150650
A174: 00824C79 | C174: 8539257 | D174: -8237958 | F174: 150649
A175: 00824C73 | C175: 8539251 | D175: -8237964 | F175: 150643
A176: 00824C71 | C176: =HEX2DEC(A176) -> 8539249 | D176: =C176-$C$142 -> -8237966 | F176: 150641
A177: 00824C6A | C177: 8539242 | D177: -8237973 | F177: 150634
A178: 00824C68 | C178: 8539240 | D178: -8237975 | F178: 150632
A179: 00824C64 | C179: 8539236 | D179: -8237979 | F179: 150628
A180: 00824C65 | C180: 8539237 | D180: -8237978 | F180: 150629
A181: 00824C61 | C181: 8539233 | D181: -8237982 | F181: 150625
A182: 00824C59 | C182: 8539225 | D182: -8237990 | F182: 150617
A183: 00824C5E | C183: 8539230 | D183: -8237985 | F183: 150622
A184: 00824C5C | C184: 8539228 | D184: -8237987 | F184: 150620
A185: 00824C55 | C185: 8539221 | D185: -8237994 | F185: =C185-$C$141 -> 150613
A186: 00824C51 | C186: 8539217 | F186: 150609
A187: 00824C56 | C187: 8539222 | D187: -8237993 | F187: 150614
A188: 00824C4F | C188: 8539215 | D188: -8238000 | F188: 150607
A189: 00824C49 | C189: 8539209 | D189: -8238006 | F189: 150601
A190: 00824C45 | C190: 8539205 | D190: -8238010 | F190: 150597
A191: 00824C54 | C191: 8539220 | D191: -8237995 | F191: 150612
A192: 00824C88 | C192: 8539272 | D192: -8237943 | F192: 150664
A193: 00824CC9 | C193: 8539337 | D193: -8237878 | F193: 150729
A194: 00824D06 | C194: 8539398 | D194: -8237817 | F194: 150790
A195: 00824D41 | C195: 8539457 | D195: -8237758 | F195: 150849
A196: 00824D7F | C196: 8539519 | D196: -8237696 | F196: 150911
A197: 00824DBB | C197: 8539579 | D197: -8237636 | F197: 150971
A198: 00824DDD | C198: 8539613 | D198: -8237602 | F198: 151005
A199: 00824E06 | C199: 8539654 | D199: -8237561 | F199: 151046
A200: 00824E28 | C200: 8539688 | D200: -8237527 | F200: 151080
A201: 00824E49 | C201: 8539721 | D201: -8237494 | F201: 151113
A202: 00824E72 | C202: 8539762 | D202: -8237453 | F202: 151154
A203: 00824E97 | C203: 8539799 | D203: -8237416 | F203: 151191
A204: 00824EB9 | C204: 8539833 | D204: -8237382 | F204: 151225
A205: 00824EDE | C205: 8539870 | D205: -8237345 | F205: 151262
A206: 00824EFE | C206: 8539902 | D206: -8237313 | F206: 151294
A207: 00824F1D | C207: 8539933 | D207: -8237282 | F207: 151325
A208: 00824F37 | C208: =HEX2DEC(A208) -> 8539959 | D208: =C208-$C$142 -> -8237256 | F208: 151351
A209: 00824F5B | C209: 8539995 | D209: -8237220 | F209: 151387
A210: 00824F7D | C210: 8540029 | D210: -8237186 | F210: 151421
A211: 00824F9C | C211: 8540060 | D211: -8237155 | F211: 151452
A212: 00824FBA | C212: 8540090 | D212: -8237125 | F212: 151482
A213: 00824FDC | C213: 8540124 | D213: -8237091 | F213: 151516
A214: 00824FF6 | C214: 8540150 | D214: -8237065 | F214: 151542
A215: 00825009 | C215: 8540169 | D215: -8237046 | F215: 151561
A216: 00825022 | C216: 8540194 | D216: -8237021 | F216: 151586
A217: 00825042 | C217: 8540226 | D217: -8236989 | F217: =C217-$C$141 -> 151618
A218: 00825057 | C218: 8540247 | D218: -8236968 | F218: 151639
A219: 0082506E | C219: 8540270 | D219: -8236945 | F219: 151662
A220: 00825086 | C220: 8540294 | D220: -8236921 | F220: 151686
A221: 00825093 | C221: 8540307 | D221: -8236908 | F221: 151699
A222: 008250B5 | C222: 8540341 | D222: -8236874 | F222: 151733
A223: 008250C8 | C223: 8540360 | D223: -8236855 | F223: 151752
A224: 008250E2 | C224: 8540386 | D224: -8236829 | F224: 151778
A225: 008250F6 | C225: 8540406 | D225: -8236809 | F225: 151798
A226: 00825108 | C226: 8540424 | D226: -8236791 | F226: 151816
A227: 00825116 | C227: 8540438 | D227: -8236777 | F227: 151830
A228: 00825126 | C228: 8540454 | D228: -8236761 | F228: 151846
A229: 00825142 | C229: 8540482 | D229: -8236733 | F229: 151874
A230: 00825154 | C230: 8540500 | D230: -8236715 | F230: 151892
A231: 00825161 | C231: 8540513 | D231: -8236702 | F231: 151905
A232: 0082517C | C232: 8540540 | D232: -8236675 | F232: 151932
A233: 00825192 | C233: 8540562 | D233: -8236653 | F233: 151954
A234: 0082519E | C234: 8540574 | D234: -8236641 | F234: 151966
A235: 0082519F | C235: 8540575 | D235: -8236640 | F235: 151967
A236: 0082517F | C236: 8540543 | D236: -8236672 | F236: 151935
A237: 0082515C | C237: 8540508 | D237: -8236707 | F237: 151900
A238: 0082512F | C238: 8540463 | D238: -8236752 | F238: 151855
A239: 00825117 | C239: 8540439 | D239: -8236776 | F239: 151831
A240: 00825111 | C240: =HEX2DEC(A240) -> 8540433 | D240: =C240-$C$142 -> -8236782 | F240: 151825
A241: 008250F5 | C241: 8540405 | D241: -8236810 | F241: 151797
A242: 008250E5 | C242: 8540389 | D242: -8236826 | F242: 151781
A243: 008250DB | C243: 8540379 | D243: -8236836 | F243: 151771
A244: 008250D3 | C244: 8540371 | D244: -8236844 | F244: 151763
A245: 008250C8 | C245: 8540360 | D245: -8236855 | F245: 151752
A246: 008250B4 | C246: 8540340 | D246: -8236875 | F246: 151732
A247: 008250AD | C247: 8540333 | D247: -8236882 | F247: 151725
A248: 0082509E | C248: 8540318 | D248: -8236897 | F248: 151710
A249: 00825090 | C249: 8540304 | D249: -8236911 | F249: =C249-$C$141 -> 151696
A250: 0082508B | C250: 8540299 | D250: -8236916 | F250: 151691
A251: 00825074 | C251: 8540276 | D251: -8236939 | F251: 151668
A252: 00825070 | C252: 8540272 | D252: -8236943 | F252: 151664
A253: 00825060 | C253: 8540256 | D253: -8236959 | F253: 151648
A254: 00825052 | C254: 8540242 | D254: -8236973 | F254: 151634
A255: 00825047 | C255: 8540231 | D255: -8236984 | F255: 151623
A256: 0082503D | C256: 8540221 | D256: -8236994 | F256: 151613
A257: 00825034 | C257: 8540212 | D257: -8237003 | F257: 151604
A258: 00825023 | C258: 8540195 | D258: -8237020 | F258: 151587
A259: 0082501A | C259: 8540186 | D259: -8237029 | F259: 151578
A260: 00825008 | C260: 8540168 | D260: -8237047 | F260: 151560
A261: 00824FF5 | C261: 8540149 | D261: -8237066 | F261: 151541
A262: 00824FF5 | C262: 8540149 | D262: -8237066 | F262: 151541
A263: 00824FEE | C263: 8540142 | D263: -8237073 | F263: 151534
A264: 00824FE3 | C264: 8540131 | D264: -8237084 | F264: 151523
A265: 00824FCF | C265: 8540111 | D265: -8237104 | F265: 151503
A266: 00824FCD | C266: 8540109 | D266: -8237106 | F266: 151501
A267: 00824FC2 | C267: 8540098 | D267: -8237117 | F267: 151490
A268: 00824FBC | C268: 8540092 | D268: -8237123 | F268: 151484
A269: 00824FB6 | C269: 8540086 | D269: -8237129 | F269: 151478
A270: 00824FA9 | C270: 8540073 | D270: -8237142 | F270: 151465
A271: 00824F95 | C271: 8540053 | D271: -8237162 | F271: 151445
A272: 00824F91 | C272: 8540049 | D272: -8237166 | F272: 151441
A273: 00824F82 | C273: 8540034 | D273: -8237181 | F273: 151426
A274: 00824F73 | C274: 8540019 | D274: -8237196 | F274: 151411
A275: 00824F6F | C275: 8540015 | D275: -8237200 | F275: 151407
A276: 00824F68 | C276: 8540008 | D276: -8237207 | F276: 151400
A277: 00824F5F | C277: 8539999 | D277: -8237216 | F277: 151391
A278: 00824F5B | C278: 8539995 | D278: -8237220 | F278: 151387
A279: 00824F48 | C279: =HEX2DEC(A279) -> 8539976 | D279: =C279-$C$142 -> -8237239 | F279: 151368
A280: 00824F45 | C280: 8539973 | D280: -8237242 | F280: 151365
A281: 00824F3F | C281: 8539967 | D281: -8237248 | F281: =C281-$C$141 -> 151359
A282: 00824F32 | C282: 8539954 | D282: -8237261 | F282: 151346
A283: 00824F23 | C283: 8539939 | D283: -8237276 | F283: 151331
A284: 00824F19 | C284: 8539929 | D284: -8237286 | F284: 151321
A285: 00824F0D | C285: 8539917 | D285: -8237298 | F285: 151309
A286: 00824F08 | C286: 8539912 | D286: -8237303 | F286: 151304
A287: 00824F02 | C287: 8539906 | D287: -8237309 | F287: 151298
A288: 00824EEB | C288: 8539883 | D288: -8237332 | F288: 151275
A289: 00824EEB | C289: 8539883 | D289: -8237332 | F289: 151275
A290: 00824EE5 | C290: 8539877 | D290: -8237338 | F290: 151269
A291: 00824EDB | C291: 8539867 | D291: -8237348 | F291: 151259
A292: 00824ED7 | C292: 8539863 | D292: -8237352 | F292: 151255
A293: 00824EC4 | C293: 8539844 | D293: -8237371 | F293: 151236
A294: 00824EBA | C294: 8539834 | D294: -8237381 | F294: 151226
A295: 00824EB9 | C295: 8539833 | D295: -8237382 | F295: 151225
A296: 00824EB4 | C296: 8539828 | D296: -8237387 | F296: 151220
A297: 00824EA8 | C297: 8539816 | D297: -8237399 | F297: 151208
A298: 00824EA0 | C298: 8539808 | D298: -8237407 | F298: 151200
A299: 00824E9A | C299: 8539802 | D299: -8237413 | F299: 151194
A300: 00824E8F | C300: 8539791 | D300: -8237424 | F300: 151183
A301: 00824E85 | C301: 8539781 | D301: -8237434 | F301: 151173
A302: 00824E76 | C302: 8539766 | D302: -8237449 | F302: 151158
A303: 00824E72 | C303: 8539762 | D303: -8237453 | F303: 151154
A304: 00824E68 | C304: 8539752 | D304: -8237463 | F304: 151144
A305: 00824E62 | C305: 8539746 | D305: -8237469 | F305: 151138
A306: 00824E57 | C306: 8539735 | D306: -8237480 | F306: 151127
A307: 00824E54 | C307: 8539732 | D307: -8237483 | F307: 151124
A308: 00824E55 | C308: 8539733 | D308: -8237482 | F308: 151125
A309: 00824E4F | C309: 8539727 | D309: -8237488 | F309: 151119
A310: 00824E3F | C310: 8539711 | D310: -8237504 | F310: 151103
A311: 00824E3D | C311: 8539709 | D311: -8237506 | F311: 151101
A312: 00824E2F | C312: 8539695 | D312: -8237520 | F312: 151087
A313: 00824E24 | C313: 8539684 | D313: -8237531 | F313: 151076
A314: 00824E22 | C314: 8539682 | D314: -8237533 | F314: 151074
A315: 00824E1F | C315: =HEX2DEC(A315) -> 8539679 | D315: =C315-$C$142 -> -8237536 | F315: =C315-$C$141 -> 151071
C316: 0 | D316: -16777215 | F316: -8388608
A317: L3.00E12488
A318: 00E12494 | C318: 14754964 | D318: -2022251 | F318: 6366356
A319: 00E1249B | C319: 14754971 | D319: -2022244 | F319: 6366363
A320: 00E1249F | C320: 14754975 | D320: -2022240 | F320: 6366367
A321: 00E124A0 | C321: 14754976 | D321: -2022239 | F321: 6366368
A322: 00C124A0 | C322: 12657824 | D322: -4119391 | F322: 4269216
A323: 00E124A2 | C323: 14754978 | D323: -2022237 | F323: 6366370
A324: 00E124A3 | C324: 14754979 | D324: -2022236 | F324: 6366371
A325: 00E124A4 | C325: 14754980 | D325: -2022235 | F325: 6366372
A326: 00E124A3 | C326: 14754979 | D326: -2022236 | F326: 6366371
A327: 00C124A4 | C327: 12657828 | D327: -4119387 | F327: 4269220
A328: 00E124A6 | C328: 14754982 | D328: -2022233 | F328: 6366374
A329: 00E124AD | C329: 14754989 | D329: -2022226 | F329: 6366381
A330: 00E124B4 | C330: 14754996 | D330: -2022219 | F330: 6366388
A331: 00E124C8 | C331: 14755016 | D331: -2022199 | F331: 6366408
A332: 00E124D9 | C332: 14755033 | D332: -2022182 | F332: 6366425
A333: 00E124EA | C333: 14755050 | D333: -2022165 | F333: 6366442
A334: 00E124FF | C334: 14755071 | D334: -2022144 | F334: 6366463
A335: 00E12515 | C335: 14755093 | D335: -2022122 | F335: 6366485
A336: 00E12529 | C336: 14755113 | D336: -2022102 | F336: 6366505
A337: 00E12542 | C337: 14755138 | D337: -2022077 | F337: 6366530
A338: 00E1255A | C338: 14755162 | D338: -2022053 | F338: 6366554
A339: 00C12570 | C339: 12658032 | D339: -4119183 | F339: 4269424
... 107 more rows

Sheet Sheet2
B35: NCP51460SN33T1G数据手册PDF下载
K37: SGM2200-3.3YK2G/TR | L37: SGM2200-3.3YK1G/TR | M37: SGM2200-3.3YK0G/TR | V37: REF3025AIDBZR
A90: https://www.analog.com/cn/analog-dialogue/articles/staying-well-grounded.html#

Sheet Sheet1
C18: IO | D18: DEFINE | E18: PIN
C19: P1.2 | D19: TEMP | E19: 1
C20: P1.3 | D20: CS2_A0 | E20: 2
C21: P1.4 | D21: DOUT2 | E21: 3
C22: P1.5 | D22: SCLK2 | E22: 4
C23: P1.6 | D23: DOUT1 | E23: 5
C24: P1.7 | D24: SCLK1 | E24: 6
C25: P5.4 | D25: PDWN | E25: 7
C26: P5.5 | D26: CS_A0 | E26: 9
C27: P1.1 | D27: TXD2 | E27: 20
C28: P1.0 | D28: RXD2 | E28: 19
C29: P3.7 | D29: GAIN1 | E29: 18
C30: P3.6 | D30: GAIN0 | E30: 17
C31: P3.5 | D31: LED1 | E31: 16
C32: P3.4 | D32: LED2 | E32: 15
C33: P3.3 | D33: 485_RE | E33: 14
C34: P3.2 | D34: 485-DE | E34: 13
C35: P3.1 | D35: TXD0 | E35: 12
C36: P3.0 | D36: RXD0 | E36: 11
